[Event "*** SCC Grand Prix: Titled Tuesday Blitz"]
[Site "Chess.com"]
[Date "2020.10.13"]
[Round "7"]
[White "BursaBBSatranc"]
[Black "Sergienko_Sergey"]
[Result "1-0"]
[WhiteElo "2592"]
[BlackElo "2397"]
[TimeControl "180+1"]
[EndTime "11:19:13 PDT"]
[Termination "BursaBBSatranc won by resignation"]

1. d4 {[%clk 0:03:00.9]} 1... Nf6 {[%clk 0:02:58.8]} 2. Bf4 {[%clk 0:03:00.9]}
2... d6 {[%clk 0:02:53.7]} 3. e3 {[%clk 0:03:01.4]} 3... g6 {[%clk 0:02:52.4]}
4. Nf3 {[%clk 0:03:01.3]} 4... Bg7 {[%clk 0:02:52.3]} 5. h3 {[%clk 0:03:01.6]}
5... O-O {[%clk 0:02:51.5]} 6. Be2 {[%clk 0:03:00.9]} 6... c5 {[%clk 0:02:48.1]}
7. c3 {[%clk 0:03:00.8]} 7... b6 {[%clk 0:02:44.5]} 8. O-O {[%clk 0:03:00.6]}
8... Bb7 {[%clk 0:02:43]} 9. a4 {[%clk 0:03:01]} 9... a6 {[%clk 0:02:39.8]} 10.
Nbd2 {[%clk 0:03:00.7]} 10... Nbd7 {[%clk 0:02:39.5]} 11. Bh2 {[%clk 0:03:00.3]}
11... Ne4 {[%clk 0:02:20.7]} 12. Qb3 {[%clk 0:02:57.4]} 12... Nxd2 {[%clk
0:02:10.9]} 13. Nxd2 {[%clk 0:02:58.3]} 13... Rc8 {[%clk 0:02:03.7]} 14. Nf3
{[%clk 0:02:53.1]} 14... cxd4 {[%clk 0:01:39.4]} 15. exd4 {[%clk 0:02:47.4]}
15... Nf6 {[%clk 0:01:25.7]} 16. Rfe1 {[%clk 0:02:47.4]} 16... Bd5 {[%clk
0:01:18.1]} 17. Qd1 {[%clk 0:02:43.3]} 17... a5 {[%clk 0:01:13.2]} 18. Nd2
{[%clk 0:02:21.4]} 18... Qd7 {[%clk 0:01:11]} 19. Bf3 {[%clk 0:02:20.8]} 19...
Bxf3 {[%clk 0:01:09.4]} 20. Qxf3 {[%clk 0:02:18.6]} 20... Rfe8 {[%clk
0:01:08.4]} 21. Re2 {[%clk 0:02:12.4]} 21... Qc6 {[%clk 0:01:03.8]} 22. Qd3
{[%clk 0:02:12.3]} 22... e6 {[%clk 0:00:58.7]} 23. Nf3 {[%clk 0:01:42.6]} 23...
Red8 {[%clk 0:00:58.1]} 24. Ne1 {[%clk 0:01:19]} 24... Qc4 {[%clk 0:00:56.7]}
25. Qd1 {[%clk 0:01:15.5]} 25... Nd5 {[%clk 0:00:54.5]} 26. Nc2 {[%clk
0:01:11.5]} 26... Qc6 {[%clk 0:00:50.4]} 27. Ne3 {[%clk 0:01:09.9]} 27... Nxe3
{[%clk 0:00:50]} 28. fxe3 {[%clk 0:01:08.8]} 28... d5 {[%clk 0:00:49]} 29. Qd3
{[%clk 0:01:05.5]} 29... Qc4 {[%clk 0:00:48.3]} 30. Qc2 {[%clk 0:00:58.9]} 30...
Qc6 {[%clk 0:00:47.5]} 31. Qb3 {[%clk 0:00:50.9]} 31... Rd7 {[%clk 0:00:47.2]}
32. Rae1 {[%clk 0:00:49.6]} 32... Rb7 {[%clk 0:00:46.6]} 33. e4 {[%clk 0:00:48]}
33... dxe4 {[%clk 0:00:45.7]} 34. Rxe4 {[%clk 0:00:47.7]} 34... Qc4 {[%clk
0:00:43.9]} 35. Qxc4 {[%clk 0:00:17.8]} 35... Rxc4 {[%clk 0:00:43.2]} 36. Ra1
{[%clk 0:00:18.2]} 36... Kf8 {[%clk 0:00:35.4]} 37. Kf2 {[%clk 0:00:15.6]} 37...
Rd7 {[%clk 0:00:34.1]} 38. Ke2 {[%clk 0:00:15.2]} 38... Ke8 {[%clk 0:00:32]} 39.
Be5 {[%clk 0:00:15.3]} 39... Bf8 {[%clk 0:00:27.2]} 40. Kd3 {[%clk 0:00:14]}
40... Rc8 {[%clk 0:00:26.4]} 41. Bg3 {[%clk 0:00:13.2]} 41... Bd6 {[%clk
0:00:24.8]} 42. Bxd6 {[%clk 0:00:12.9]} 42... Rxd6 {[%clk 0:00:24.7]} 43. Re5
{[%clk 0:00:13.8]} 43... Kd7 {[%clk 0:00:22.5]} 44. g4 {[%clk 0:00:13.2]} 44...
f5 {[%clk 0:00:19.1]} 45. gxf5 {[%clk 0:00:11.2]} 45... gxf5 {[%clk 0:00:15.7]}
46. Rg1 {[%clk 0:00:11.1]} 46... Kc6 {[%clk 0:00:14.7]} 47. Rg7 {[%clk
0:00:10.4]} 47... Rc7 {[%clk 0:00:14.8]} 48. Rg5 {[%clk 0:00:08]} 48... Rf7
{[%clk 0:00:14]} 49. Rh5 {[%clk 0:00:07.3]} 49... Kd7 {[%clk 0:00:13.4]} 50. Rh6
{[%clk 0:00:06.7]} 50... Ke7 {[%clk 0:00:12.5]} 51. Ke3 {[%clk 0:00:05.8]} 51...
Kd7 {[%clk 0:00:10.9]} 52. Kf4 {[%clk 0:00:05.7]} 52... Ke7 {[%clk 0:00:10.8]}
53. h4 {[%clk 0:00:05.3]} 53... Kd7 {[%clk 0:00:10.6]} 54. Rh5 {[%clk
0:00:05.7]} 54... Ke7 {[%clk 0:00:09.9]} 55. Rg5 {[%clk 0:00:06.1]} 55... Kd7
{[%clk 0:00:09.8]} 56. h5 {[%clk 0:00:06.7]} 56... Ke7 {[%clk 0:00:09.6]} 57. h6
{[%clk 0:00:07]} 57... Kf6 {[%clk 0:00:08.9]} 58. Rg8 {[%clk 0:00:06.2]} 58...
Re7 {[%clk 0:00:07.2]} 59. Re2 {[%clk 0:00:05.3]} 59... Rf7 {[%clk 0:00:06]} 60.
Re3 {[%clk 0:00:04.5]} 60... Re7 {[%clk 0:00:05.8]} 61. Rg5 {[%clk 0:00:05]}
61... Rf7 {[%clk 0:00:05.7]} 62. Re5 {[%clk 0:00:05.3]} 62... Re7 {[%clk
0:00:05.5]} 63. Rg2 {[%clk 0:00:06]} 63... Rf7 {[%clk 0:00:05.7]} 64. Rg3 {[%clk
0:00:06.6]} 64... Re7 {[%clk 0:00:05.7]} 65. Re2 {[%clk 0:00:07.2]} 65... Rf7
{[%clk 0:00:05.9]} 66. Reg2 {[%clk 0:00:07]} 66... Re7 {[%clk 0:00:06]} 67. Rg7
{[%clk 0:00:07.2]} 67... e5+ {[%clk 0:00:05.2]} 68. dxe5+ {[%clk 0:00:06.7]}
68... Rxe5 {[%clk 0:00:05.3]} 69. R7g3 {[%clk 0:00:06.3]} 69... Re4+ {[%clk
0:00:05.4]} 70. Kf3 {[%clk 0:00:06.7]} 70... Rde6 {[%clk 0:00:05.4]} 71. Kf2
{[%clk 0:00:06]} 71... Re2+ {[%clk 0:00:05.3]} 72. Kg1 {[%clk 0:00:06.4]} 72...
Rxg2+ {[%clk 0:00:05.6]} 73. Rxg2 {[%clk 0:00:07.3]} 73... f4 {[%clk 0:00:05.8]}
74. Rg7 {[%clk 0:00:07.1]} 74... Kf5 {[%clk 0:00:05.5]} 75. Rxh7 {[%clk
0:00:07]} 75... Rg6+ {[%clk 0:00:05.1]} 76. Kf2 {[%clk 0:00:06.6]} 76... Kg4
{[%clk 0:00:04.8]} 77. Rf7 {[%clk 0:00:06.3]} 77... Rxh6 {[%clk 0:00:04.2]} 78.
Rg7+ {[%clk 0:00:06.4]} 78... Kf5 {[%clk 0:00:03]} 79. b4 {[%clk 0:00:05.8]}
79... Rf6 {[%clk 0:00:03.5]} 80. bxa5 {[%clk 0:00:05.5]} 80... bxa5 {[%clk
0:00:03.6]} 81. Ra7 {[%clk 0:00:06.1]} 81... Rc6 {[%clk 0:00:03.5]} 82. Rxa5+
{[%clk 0:00:06.2]} 82... Ke4 {[%clk 0:00:04.1]} 83. Ra8 {[%clk 0:00:05.2]} 83...
Rxc3 {[%clk 0:00:04.5]} 84. Re8+ {[%clk 0:00:05.7]} 84... Kd3 {[%clk 0:00:04.4]}
85. Kf3 {[%clk 0:00:05.2]} 85... Ra3 {[%clk 0:00:04.5]} 86. Re4 {[%clk
0:00:04.3]} 86... Rxa4 {[%clk 0:00:04.1]} 87. Rxa4 {[%clk 0:00:04.1]} 87... Kc3
{[%clk 0:00:04.6]} 88. Rxf4 {[%clk 0:00:05]} 1-0

[Event "*** SCC Grand Prix: Titled Tuesday Blitz"]
[Site "Chess.com"]
[Date "2020.10.13"]
[Round "7"]
[White "LiamVrolijk"]
[Black "Msb2"]
[Result "1-0"]
[WhiteElo "2853"]
[BlackElo "2928"]
[TimeControl "180+1"]
[EndTime "11:20:18 PDT"]
[Termination "LiamVrolijk won by checkmate"]

1. d4 {[%clk 0:03:00]} 1... Nf6 {[%clk 0:02:59.9]} 2. c4 {[%clk 0:03:00.6]} 2...
e6 {[%clk 0:02:59.8]} 3. Nf3 {[%clk 0:03:01.1]} 3... d5 {[%clk 0:03:00.1]} 4.
Nc3 {[%clk 0:03:01.8]} 4... Bb4 {[%clk 0:02:59.6]} 5. cxd5 {[%clk 0:03:01.5]}
5... exd5 {[%clk 0:03:00.5]} 6. Bf4 {[%clk 0:03:02]} 6... O-O {[%clk 0:02:59.4]}
7. e3 {[%clk 0:03:02.1]} 7... c6 {[%clk 0:02:57.4]} 8. h3 {[%clk 0:03:00.5]}
8... Bf5 {[%clk 0:02:56.2]} 9. Nh4 {[%clk 0:02:56.1]} 9... Be4 {[%clk
0:02:53.5]} 10. Qb3 {[%clk 0:02:51.4]} 10... Qe7 {[%clk 0:02:49.7]} 11. Be2
{[%clk 0:02:45.9]} 11... h6 {[%clk 0:02:32.9]} 12. Nf3 {[%clk 0:02:41.1]} 12...
Bh7 {[%clk 0:02:26.4]} 13. O-O {[%clk 0:02:40.4]} 13... Nbd7 {[%clk 0:02:18.1]}
14. a3 {[%clk 0:02:39.6]} 14... Bxc3 {[%clk 0:02:18.7]} 15. bxc3 {[%clk
0:02:34]} 15... b5 {[%clk 0:02:18.6]} 16. a4 {[%clk 0:02:30.9]} 16... a6 {[%clk
0:02:18.8]} 17. Ne5 {[%clk 0:02:15.1]} 17... Nxe5 {[%clk 0:02:15.9]} 18. Bxe5
{[%clk 0:02:16]} 18... Ne4 {[%clk 0:02:15.6]} 19. Ra2 {[%clk 0:02:12.5]} 19...
f6 {[%clk 0:02:07.3]} 20. Bh2 {[%clk 0:02:12.1]} 20... Rfe8 {[%clk 0:02:04.9]}
21. Rfa1 {[%clk 0:01:51]} 21... Rad8 {[%clk 0:01:36.4]} 22. axb5 {[%clk
0:01:39.8]} 22... axb5 {[%clk 0:01:37.3]} 23. Ra7 {[%clk 0:01:39.6]} 23... Rd7
{[%clk 0:01:37.9]} 24. Rxd7 {[%clk 0:01:34.8]} 24... Qxd7 {[%clk 0:01:38.8]} 25.
Qa3 {[%clk 0:01:16.4]} 25... Bg6 {[%clk 0:01:36.3]} 26. Ra2 {[%clk 0:01:06.8]}
26... Qe6 {[%clk 0:01:30.6]} 27. Bf1 {[%clk 0:01:02.7]} 27... Kh7 {[%clk
0:01:10.4]} 28. Bf4 {[%clk 0:01:02.7]} 28... h5 {[%clk 0:00:57.1]} 29. f3 {[%clk
0:00:50.1]} 29... Ng5 {[%clk 0:00:57.4]} 30. Kf2 {[%clk 0:00:50.5]} 30... Qf5
{[%clk 0:00:52.8]} 31. Rd2 {[%clk 0:00:46.6]} 31... h4 {[%clk 0:00:51.2]} 32.
Bd3 {[%clk 0:00:44.7]} 32... Qe6 {[%clk 0:00:49.9]} 33. Be2 {[%clk 0:00:43.1]}
33... Nf7 {[%clk 0:00:44.4]} 34. Ra2 {[%clk 0:00:40.8]} 34... Bf5 {[%clk
0:00:40.5]} 35. Qc1 {[%clk 0:00:40.7]} 35... Nd6 {[%clk 0:00:39.4]} 36. Ra6
{[%clk 0:00:33.1]} 36... Nc4 {[%clk 0:00:39.4]} 37. Bxc4 {[%clk 0:00:33.5]}
37... bxc4 {[%clk 0:00:40.3]} 38. Ra7 {[%clk 0:00:26.6]} 38... Kh8 {[%clk
0:00:37.2]} 39. Bh2 {[%clk 0:00:26.9]} 39... Bd3 {[%clk 0:00:35]} 40. Qd2 {[%clk
0:00:20.6]} 40... Re7 {[%clk 0:00:22.5]} 41. Ra8+ {[%clk 0:00:18.1]} 41... Kh7
{[%clk 0:00:22.6]} 42. Qe1 {[%clk 0:00:15.7]} 42... Rb7 {[%clk 0:00:21.7]} 43.
Ra1 {[%clk 0:00:14.6]} 43... Rb2+ {[%clk 0:00:21.6]} 44. Kg1 {[%clk 0:00:15.5]}
44... Kg6 {[%clk 0:00:18.6]} 45. Kh1 {[%clk 0:00:14.8]} 45... Re2 {[%clk
0:00:15.1]} 46. Qxh4 {[%clk 0:00:14.2]} 46... Qxe3 {[%clk 0:00:15.7]} 47. Bf4
{[%clk 0:00:13.9]} 47... Qe6 {[%clk 0:00:14]} 48. Qg3+ {[%clk 0:00:12.5]} 48...
Kh7 {[%clk 0:00:13.9]} 49. Qh4+ {[%clk 0:00:11.9]} 49... Kg6 {[%clk 0:00:14.5]}
50. Qg3+ {[%clk 0:00:12.1]} 50... Kh7 {[%clk 0:00:11.8]} 51. Ra7 {[%clk
0:00:12.7]} 51... Bg6 {[%clk 0:00:06.4]} 52. Qh4+ {[%clk 0:00:07.9]} 52... Kg8
{[%clk 0:00:07]} 53. Ra8+ {[%clk 0:00:08.5]} 53... Be8 {[%clk 0:00:07.7]} 54.
Qg3 {[%clk 0:00:06.8]} 54... Qf7 {[%clk 0:00:06.7]} 55. Kh2 {[%clk 0:00:06.7]}
55... Re6 {[%clk 0:00:06.7]} 56. Bd6 {[%clk 0:00:07]} 56... Kh7 {[%clk
0:00:06.2]} 57. Qh4+ {[%clk 0:00:06.9]} 57... Qh5 {[%clk 0:00:06.1]} 58. Qg3
{[%clk 0:00:07.7]} 58... Bg6 {[%clk 0:00:05.5]} 59. Bc5 {[%clk 0:00:07.7]} 59...
Re2 {[%clk 0:00:03.5]} 60. Qb8 {[%clk 0:00:07.8]} 60... Re8 {[%clk 0:00:04.1]}
61. Qb7 {[%clk 0:00:06.9]} 61... Rxa8 {[%clk 0:00:05]} 62. Qxa8 {[%clk
0:00:07.8]} 62... Qf5 {[%clk 0:00:05.8]} 63. Qxc6 {[%clk 0:00:08.2]} 63... Qf4+
{[%clk 0:00:06.3]} 64. Kg1 {[%clk 0:00:08.9]} 64... Qc1+ {[%clk 0:00:06.2]} 65.
Kh2 {[%clk 0:00:09.7]} 65... Qf4+ {[%clk 0:00:06.4]} 66. Kg1 {[%clk 0:00:10]}
66... Bf7 {[%clk 0:00:06.9]} 67. Bb4 {[%clk 0:00:09.4]} 67... Qe3+ {[%clk
0:00:06.6]} 68. Kh2 {[%clk 0:00:10]} 68... Qf4+ {[%clk 0:00:07.1]} 69. Kg1
{[%clk 0:00:10.4]} 69... Qe3+ {[%clk 0:00:04.3]} 70. Kh2 {[%clk 0:00:10.7]}
70... Be6 {[%clk 0:00:02.8]} 71. Qd6 {[%clk 0:00:10.8]} 71... Bf5 {[%clk
0:00:03.1]} 72. Qg3 {[%clk 0:00:11]} 72... Qd2 {[%clk 0:00:03.1]} 73. Bf8 {[%clk
0:00:11.1]} 73... Bg6 {[%clk 0:00:03.7]} 74. Bb4 {[%clk 0:00:11.2]} 74... Qe3
{[%clk 0:00:03.8]} 75. Qc7 {[%clk 0:00:10.9]} 75... Qe2 {[%clk 0:00:03.7]} 76.
Bf8 {[%clk 0:00:10.1]} 76... Kh6 {[%clk 0:00:03.3]} 77. Qxg7+ {[%clk 0:00:10.3]}
77... Kg5 {[%clk 0:00:03.9]} 78. Qh6+ {[%clk 0:00:09.5]} 78... Kf5 {[%clk
0:00:04.5]} 79. Bd6 {[%clk 0:00:07.8]} 79... Bf7 {[%clk 0:00:03.7]} 80. Qf4+
{[%clk 0:00:08.1]} 80... Ke6 {[%clk 0:00:04.2]} 81. Bb8 {[%clk 0:00:08.6]} 81...
Qd3 {[%clk 0:00:03.8]} 82. Qd6+ {[%clk 0:00:09]} 82... Kf5 {[%clk 0:00:03]} 83.
Qf4+ {[%clk 0:00:09.9]} 83... Kg6 {[%clk 0:00:03]} 84. Qg4+ {[%clk 0:00:10.3]}
84... Kh7 {[%clk 0:00:03.6]} 85. Qh4+ {[%clk 0:00:10.8]} 85... Kg7 {[%clk
0:00:04.5]} 86. Qg3+ {[%clk 0:00:09]} 86... Bg6 {[%clk 0:00:05.4]} 87. Qe1
{[%clk 0:00:08.8]} 87... Qf5 {[%clk 0:00:05]} 88. Bg3 {[%clk 0:00:09]} 88... Bf7
{[%clk 0:00:05.5]} 89. Qe3 {[%clk 0:00:09.6]} 89... Qc2 {[%clk 0:00:05.2]} 90.
Bh4 {[%clk 0:00:09.4]} 90... Bg6 {[%clk 0:00:05.3]} 91. Qf4 {[%clk 0:00:08.8]}
91... Qf5 {[%clk 0:00:04.2]} 92. Qxf5 {[%clk 0:00:09.1]} 92... Bxf5 {[%clk
0:00:05.1]} 93. Bf2 {[%clk 0:00:09.7]} 93... Bd3 {[%clk 0:00:05.5]} 94. g4
{[%clk 0:00:09.8]} 94... Kg6 {[%clk 0:00:06.4]} 95. Kg3 {[%clk 0:00:10.4]} 95...
Be2 {[%clk 0:00:07.3]} 96. h4 {[%clk 0:00:10.8]} 96... f5 {[%clk 0:00:07.9]} 97.
h5+ {[%clk 0:00:11.1]} 97... Kf6 {[%clk 0:00:08.3]} 98. Be3 {[%clk 0:00:11.6]}
98... fxg4 {[%clk 0:00:07.2]} 99. fxg4 {[%clk 0:00:12.5]} 99... Kg7 {[%clk
0:00:08.1]} 100. Kh4 {[%clk 0:00:12.5]} 100... Kh7 {[%clk 0:00:08.6]} 101. g5
{[%clk 0:00:13.1]} 101... Kg7 {[%clk 0:00:09.5]} 102. Bf4 {[%clk 0:00:12.9]}
102... Bd3 {[%clk 0:00:10.4]} 103. Be5+ {[%clk 0:00:13.3]} 103... Kh7 {[%clk
0:00:11.3]} 104. g6+ {[%clk 0:00:13.8]} 104... Kh6 {[%clk 0:00:12.2]} 105. Bf4+
{[%clk 0:00:13.8]} 105... Kg7 {[%clk 0:00:13.1]} 106. Kg5 {[%clk 0:00:13.8]}
106... Kg8 {[%clk 0:00:14]} 107. h6 {[%clk 0:00:14.1]} 107... Bc2 {[%clk
0:00:14.9]} 108. h7+ {[%clk 0:00:14.4]} 108... Kf8 {[%clk 0:00:15.4]} 109. h8=Q+
{[%clk 0:00:14.7]} 109... Ke7 {[%clk 0:00:16.3]} 110. Qe5+ {[%clk 0:00:15.2]}
110... Kd7 {[%clk 0:00:17.2]} 111. Qxd5+ {[%clk 0:00:15.3]} 111... Kc8 {[%clk
0:00:18.1]} 112. Qc6+ {[%clk 0:00:15.6]} 112... Kd8 {[%clk 0:00:17.9]} 113. Qc7+
{[%clk 0:00:15.9]} 113... Ke8 {[%clk 0:00:18.7]} 114. Bd6 {[%clk 0:00:16.3]}
114... Bxg6 {[%clk 0:00:17.9]} 115. Qe7# {[%clk 0:00:17.2]} 1-0

[Event "*** SCC Grand Prix: Titled Tuesday Blitz"]
[Site "Chess.com"]
[Date "2020.10.13"]
[Round "8"]
[White "KarstenHansch"]
[Black "nitpicker"]
[Result "0-1"]
[WhiteElo "2442"]
[BlackElo "2297"]
[TimeControl "180+1"]
[EndTime "11:27:52 PDT"]
[Termination "nitpicker won by resignation"]

1. e4 {[%clk 0:03:00.9]} 1... d5 {[%clk 0:03:00]} 2. exd5 {[%clk 0:03:00]} 2...
Qxd5 {[%clk 0:03:00]} 3. Nc3 {[%clk 0:03:00.5]} 3... Qd8 {[%clk 0:03:00.1]} 4.
d4 {[%clk 0:03:00.5]} 4... Nf6 {[%clk 0:03:00.1]} 5. Nf3 {[%clk 0:02:59.2]} 5...
c6 {[%clk 0:03:00.1]} 6. Bc4 {[%clk 0:02:56.9]} 6... Bf5 {[%clk 0:02:59.7]} 7.
O-O {[%clk 0:02:56]} 7... e6 {[%clk 0:02:57.6]} 8. Bg5 {[%clk 0:02:51.1]} 8...
Be7 {[%clk 0:02:54.2]} 9. h3 {[%clk 0:02:41]} 9... h6 {[%clk 0:02:53.8]} 10. Bh4
{[%clk 0:02:40.7]} 10... Nbd7 {[%clk 0:02:51.5]} 11. Bb3 {[%clk 0:02:37.7]}
11... O-O {[%clk 0:02:47.1]} 12. Ne2 {[%clk 0:02:37]} 12... Ne4 {[%clk
0:02:41.8]} 13. Bf6 {[%clk 0:02:36]} 13... Nexf6 {[%clk 0:02:39.6]} 0-1

[Event "*** SCC Grand Prix: Titled Tuesday Blitz"]
[Site "Chess.com"]
[Date "2020.10.13"]
[Round "8"]
[White "akanga001"]
[Black "salomez"]
[Result "1-0"]
[WhiteElo "1861"]
[BlackElo "2143"]
[TimeControl "180+1"]
[EndTime "11:28:01 PDT"]
[Termination "akanga001 won by resignation"]

1. d4 {[%clk 0:03:00.9]} 1... Nf6 {[%clk 0:02:57.5]} 2. c4 {[%clk 0:03:00.5]}
2... g6 {[%clk 0:02:56.5]} 3. Nc3 {[%clk 0:02:59.8]} 3... d5 {[%clk 0:02:56.6]}
4. Bg5 {[%clk 0:02:57.6]} 4... Ne4 {[%clk 0:02:54.9]} 5. Bh4 {[%clk 0:02:57.3]}
5... Nxc3 {[%clk 0:02:51]} 6. bxc3 {[%clk 0:02:58.2]} 6... Bg7 {[%clk
0:02:51.2]} 7. e3 {[%clk 0:02:56.2]} 7... Nc6 {[%clk 0:02:44]} 8. Nf3 {[%clk
0:02:46.7]} 8... O-O {[%clk 0:02:42.7]} 9. Qa4 {[%clk 0:02:42.7]} 9... Bd7
{[%clk 0:02:24.9]} 10. Qa3 {[%clk 0:02:41.9]} 10... e6 {[%clk 0:02:21.8]} 11.
Bxd8 {[%clk 0:02:38.7]} 1-0

[Event "*** SCC Grand Prix: Titled Tuesday Blitz"]
[Site "Chess.com"]
[Date "2020.10.13"]
[Round "8"]
[White "allvim"]
[Black "Obito24"]
[Result "1-0"]
[WhiteElo "2317"]
[BlackElo "2501"]
[TimeControl "180+1"]
[EndTime "11:29:44 PDT"]
[Termination "allvim won by resignation"]

1. e4 {[%clk 0:03:00.9]} 1... e5 {[%clk 0:02:55]} 2. Nf3 {[%clk 0:03:00.8]} 2...
Nc6 {[%clk 0:02:54.6]} 3. Bc4 {[%clk 0:03:00.8]} 3... Nf6 {[%clk 0:02:53.9]} 4.
O-O {[%clk 0:03:00.7]} 4... Bc5 {[%clk 0:02:50.3]} 5. d4 {[%clk 0:02:59.9]} 5...
Nxd4 {[%clk 0:02:48.7]} 6. Nxe5 {[%clk 0:02:57.4]} 6... O-O {[%clk 0:02:47.5]}
7. Be3 {[%clk 0:02:56.3]} 7... Ne6 {[%clk 0:02:22.9]} 8. Bxe6 {[%clk 0:02:48.2]}
8... Bxe3 {[%clk 0:02:22.8]} 9. Nxf7 {[%clk 0:02:29]} 9... Rxf7 {[%clk
0:02:15.1]} 10. Bxf7+ {[%clk 0:02:29.3]} 10... Kxf7 {[%clk 0:02:16]} 11. fxe3
{[%clk 0:02:28.2]} 11... Qe7 {[%clk 0:02:14.8]} 12. Nc3 {[%clk 0:02:21.5]} 12...
Kg8 {[%clk 0:02:13.5]} 13. Nd5 {[%clk 0:02:17]} 13... Qxe4 {[%clk 0:01:57.6]}
14. Rxf6 {[%clk 0:01:35]} 14... c6 {[%clk 0:01:57.2]} 15. Qf1 {[%clk 0:01:35.6]}
1-0

[Event "*** SCC Grand Prix: Titled Tuesday Blitz"]
[Site "Chess.com"]
[Date "2020.10.13"]
[Round "8"]
[White "redbaron8888"]
[Black "ChronicUnhappiness"]
[Result "1-0"]
[WhiteElo "2518"]
[BlackElo "2350"]
[TimeControl "180+1"]
[EndTime "11:30:06 PDT"]
[Termination "redbaron8888 won by resignation"]

1. Nf3 {[%clk 0:02:53.5]} 1... Nf6 {[%clk 0:02:58.4]} 2. g3 {[%clk 0:02:50.2]}
2... d5 {[%clk 0:02:51.5]} 3. Bg2 {[%clk 0:02:49.6]} 3... c6 {[%clk 0:02:51.6]}
4. b3 {[%clk 0:02:49.1]} 4... g6 {[%clk 0:02:50.1]} 5. Bb2 {[%clk 0:02:49]} 5...
Bg7 {[%clk 0:02:50.3]} 6. O-O {[%clk 0:02:48.9]} 6... O-O {[%clk 0:02:50.4]} 7.
d3 {[%clk 0:02:48]} 7... Bg4 {[%clk 0:02:50]} 8. Ne5 {[%clk 0:02:45.4]} 8... Bf5
{[%clk 0:02:48.7]} 9. Nd2 {[%clk 0:02:44.3]} 9... Nbd7 {[%clk 0:02:44.9]} 10. e4
{[%clk 0:02:39.4]} 10... Bg4 {[%clk 0:02:35.2]} 11. Nxg4 {[%clk 0:02:38]} 11...
Nxg4 {[%clk 0:02:34.9]} 12. Bxg7 {[%clk 0:02:36.6]} 12... Nxf2 {[%clk
0:02:32.9]} 13. Rxf2 {[%clk 0:02:36.9]} 13... Kxg7 {[%clk 0:02:33]} 14. exd5
{[%clk 0:02:35.8]} 14... cxd5 {[%clk 0:02:32.7]} 15. Bxd5 {[%clk 0:02:33.3]}
15... f5 {[%clk 0:02:19.1]} 16. Bxb7 {[%clk 0:02:30.7]} 16... Rb8 {[%clk
0:02:17.3]} 17. Bg2 {[%clk 0:02:25.2]} 17... Qb6 {[%clk 0:02:12.6]} 18. Nc4
{[%clk 0:02:24.3]} 18... Qd4 {[%clk 0:02:12.4]} 19. Rc1 {[%clk 0:02:17]} 19...
f4 {[%clk 0:02:11.8]} 20. c3 {[%clk 0:02:11.7]} 20... Qc5 {[%clk 0:01:44.5]} 21.
d4 {[%clk 0:02:06]} 21... Qg5 {[%clk 0:01:44.5]} 22. Qd2 {[%clk 0:01:54.5]}
22... Rf5 {[%clk 0:01:32.6]} 23. Rxf4 {[%clk 0:01:46.9]} 1-0

[Event "*** SCC Grand Prix: Titled Tuesday Blitz"]
[Site "Chess.com"]
[Date "2020.10.13"]
[Round "8"]
[White "niki_2003"]
[Black "Morshynska"]
[Result "0-1"]
[WhiteElo "1794"]
[BlackElo "2244"]
[TimeControl "180+1"]
[EndTime "11:30:28 PDT"]
[Termination "Morshynska won by resignation"]

1. d4 {[%clk 0:02:57.5]} 1... d5 {[%clk 0:02:59.6]} 2. c4 {[%clk 0:02:54.5]}
2... c6 {[%clk 0:03:00.5]} 3. Nf3 {[%clk 0:02:49.6]} 3... Nf6 {[%clk 0:03:00.6]}
4. g3 {[%clk 0:02:47]} 4... dxc4 {[%clk 0:02:56.7]} 5. Nc3 {[%clk 0:02:44.2]}
5... b5 {[%clk 0:02:48.4]} 6. Bg2 {[%clk 0:02:38.9]} 6... Bb7 {[%clk 0:02:47.5]}
7. a4 {[%clk 0:02:38.4]} 7... a6 {[%clk 0:02:46]} 8. Ne5 {[%clk 0:02:37.8]} 8...
Qc8 {[%clk 0:02:07.4]} 9. O-O {[%clk 0:02:22.2]} 9... e6 {[%clk 0:01:59.9]} 10.
axb5 {[%clk 0:02:18.7]} 10... cxb5 {[%clk 0:01:59]} 11. Nxb5 {[%clk 0:02:13]}
11... Bxg2 {[%clk 0:01:52.9]} 12. Kxg2 {[%clk 0:02:00.6]} 12... axb5 {[%clk
0:01:40.4]} 13. Rxa8 {[%clk 0:01:13.2]} 13... Qb7+ {[%clk 0:01:39.5]} 14. Kg1
{[%clk 0:01:03.6]} 14... Qxa8 {[%clk 0:01:38]} 0-1

[Event "*** SCC Grand Prix: Titled Tuesday Blitz"]
[Site "Chess.com"]
[Date "2020.10.13"]
[Round "8"]
[White "Alexandercs432"]
[Black "Klavdia_Nik"]
[Result "1-0"]
[WhiteElo "2138"]
[BlackElo "2101"]
[TimeControl "180+1"]
[EndTime "11:30:54 PDT"]
[Termination "Alexandercs432 won on time"]

1. e4 {[%clk 0:02:55.8]} 1... g6 {[%clk 0:02:32.1]} 2. d4 {[%clk 0:02:55]} 2...
Bg7 {[%clk 0:02:32.1]} 3. Nc3 {[%clk 0:02:54.3]} 3... c5 {[%clk 0:02:14]} 4.
dxc5 {[%clk 0:02:55.2]} 4... Qa5 {[%clk 0:02:08.6]} 5. Bd2 {[%clk 0:02:49.4]}
5... Qxc5 {[%clk 0:01:56.6]} 6. Bd3 {[%clk 0:02:49.4]} 6... Nc6 {[%clk
0:01:40.4]} 7. a3 {[%clk 0:02:48.3]} 7... Nf6 {[%clk 0:01:34]} 8. Nf3 {[%clk
0:02:48.1]} 8... d6 {[%clk 0:01:28.1]} 9. h3 {[%clk 0:02:46.1]} 9... O-O {[%clk
0:01:20.6]} 10. O-O {[%clk 0:02:46]} 10... Qb6 {[%clk 0:00:57.6]} 11. Rb1 {[%clk
0:02:43.1]} 11... a6 {[%clk 0:00:53.5]} 12. Be3 {[%clk 0:02:42]} 12... Qa5
{[%clk 0:00:34.9]} 13. Bd2 {[%clk 0:02:40.4]} 13... Qc7 {[%clk 0:00:27]} 14. Re1
{[%clk 0:02:39.9]} 14... Ne5 {[%clk 0:00:20.1]} 15. Bg5 {[%clk 0:02:34.6]} 15...
e6 {[%clk 0:00:06.1]} 16. Bf1 {[%clk 0:02:28.1]} 16... Nxf3+ {[%clk 0:00:05.7]}
17. Qxf3 {[%clk 0:02:27.8]} 17... h6 {[%clk 0:00:06.4]} 18. Bxf6 {[%clk
0:02:27.5]} 1-0